Cogmind - Beta 16.1 @@@ ROGUE MODE // 2026.04.20 @ 19:58:16 Player: GiggleBox Result: Destroyed by Y-45 Defender with Heavy Assault Rifle Performance ------------- Evolutions (0) 0 Regions Visited (2) 400 Robots Destroyed (26) 130 Value Destroyed (316) 316 Prototype IDs (0) 0 Alien Tech Used (0) 0 Bonus (0) 0 TOTAL SCORE: 846 Bonus ------- None Cogmind --------- Core Integrity 0/250 Matter 300/300 Energy 91/100 System Corruption 5% Temperature Warning (310) Movement Core (350) Ox6 Location -10/Mines Parts ------- > --- POWER (1) -------- (None) > --- PROPULSION (2) --- (None) > --- UTILITY (2) ------ Large Storage Unit > --- WEAPON (2) ------- (None) > --- INVENTORY (15) --- Ion Engine Aluminum Leg Aluminum Leg Small Storage Unit High-capacity Matter Pod (200) Light Armor Plating Hacking Suite Small Laser Grenade Launcher Peak State ------------ > --- POWER ------------ Light Ion Engine > --- PROPULSION ------- Light Treads Light Treads > --- UTILITY ---------- Small Storage Unit Seismic Detector > --- WEAPON ----------- Small Laser Small Laser > --- INVENTORY -------- Ion Engine Light Treads Aluminum Leg High-capacity Matter Pod Light Armor Plating Hacking Suite Beam Cannon Grenade Launcher [Rating: 8] Favorites ----------- Power Light Ion Engine Engine Light Ion Engine Propulsion Light Treads Treads Light Treads Leg Aluminum Leg Utility Seismic Detector Device Seismic Detector Storage Small Storage Unit Weapon Small Laser Energy Gun Small Laser Energy Cannon Beam Cannon Launcher Grenade Launcher Build | -11 -10 -10 ------- Run | Yrd Mat Min Slots Evolved . | . . . Power . | . . . Propulsion . | . . . Utility . | . . . Weapon . | . . . Parts Attached 10 | 2 6 2 Power . | . . . Engine . | . . . Core . | . . . Reactor . | . . . Propulsion 3 | . 3 . Treads 3 | . 3 . Leg . | . . . Wheel . | . . . Hover . | . . . Flight . | . . . Utility 2 | 1 1 . Device 1 | 1 . . Storage 1 | . 1 . Processor . | . . . Hackware . | . . . Protection . | . . . Artifact . | . . . Weapon 5 | 1 2 2 Energy Gun 3 | 1 1 1 Energy Cannon 1 | . 1 . Ballistic Gun . | . . . Ballistic Cannon . | . . . Launcher 1 | . . 1 Special Weapon . | . . . Impact Weapon . | . . . Slashing Weapon . | . . . Piercing Weapon . | . . . Special Melee Weapon . | . . . Unidentified Prototypes . | . . . Parts Lost 9 | . 1 8 Power 1 | . . 1 Propulsion 3 | . 1 2 Utility 1 | . . 1 Weapon 4 | . . 4 Highest Loss Streak 5 | . 1 5 To Critical Strikes . | . . . Average Backups 8 | 6 8 10 Power 1 | 1 1 1 Propulsion 2 | 4 3 2 Utility 2 | . 1 4 Weapon 2 | 1 1 3 Tool/Special . | . . . Unused Backups 15 | . 6 9 Power 4 | . 2 2 Propulsion 5 | . 3 2 Utility 4 | . . 4 Weapon 2 | . 1 1 Tool/Special . | . . . Average Slot Usage (%) 96 | . 100 84 Engine 13 | . 14 13 Treads 27 | . 27 27 Device 10 | . 14 . Storage 14 | . 14 14 Energy Gun 26 | . 27 24 Peak Build Rating 8 | 7 8 8 Average Rating 7 | 6 7 6 On Entrance 7 | 6 7 8 Avg Prop Armor Cover (%) . | . . . Naked Turns . | . . . Heaviest Build 27 | 11 26 27 Greatest Support 40 | 20 40 40 Greatest Overweight (x) 7 | . . 7 Average Overweight (x) . | . . . Largest Inventory Capacity 15 | 8 15 15 Average Capacity 10 | 8 9 15 Most Carried 11 | 7 11 11 Average Carried 8 | 6 8 10 Final Capacity 15 | 8 15 15 Final Carried 11 | 7 11 9 Class Distribution -------------------- 100% | Mutant Dominant Class ---------------- Mutant | -10/Materials Mutant | -10/Mines Resources | -11 -10 -10 ----------- Run | Yrd Mat Min Matter Collected 531 | 220 275 36 Remotely . | . . . Salvage Created 567 | 116 352 99 Parts 38 | 6 26 6 Haulers Intercepted . | . . . Recyclers Shooed 3 | . 2 1 Parts Field Recycled . | . . . Retrieved Matter . | . . . Parts Self-Destructed . | . . . Prevented . | . . . Parts Restored . | . . . Kills | -11 -10 -10 ------- Run | Yrd Mat Min Combat Hostiles Destroyed 20 | . 12 8 Guns 18 | . 12 6 AOE 2 | . . 2 Classes Destroyed 8 | 2 4 2 Worker 1 | . . 1 Tunneler 1 | 1 . . Recycler 2 | 1 1 . Operator 1 | . 1 . Watcher 2 | . 2 . Swarmer 17 | . 10 7 Grunt 2 | . 2 . Assembled 1 | . . 1 Best Kill Streak 3 | 2 3 3 Combat Bots Only 3 | . 3 3 Max Kills in Single Turn 2 | 1 1 2 Gunslinging . | . . . Exploded 2 | . . 2 Melee . | . . . Uniques/NPCs Destroyed . | . . . Combat | -11 -10 -10 -------- Run | Yrd Mat Min Hostile Shots Fired 100 | . 54 46 Missed 26 | . 19 7 Hits 74 | . 35 39 Melee 6 | . . 6 Projectile 68 | . 35 33 AOE 8 | . . 8 Critical Strikes 1 | . 1 . Damage Taken 1123 | . 358 765 Core 253 | . 72 181 Absorbed by Shields . | . . . Core Remaining (%) 100 | 100 . . Volleys Fired 73 | 3 52 18 Largest 2 | 2 2 2 Hottest 100 | 80 80 100 Shots Fired 145 | 6 104 35 Gun 137 | 6 104 27 Cannon 7 | . . 7 Launcher 1 | . . 1 Special . | . . . Kinetic . | . . . Thermal 144 | 6 104 34 Explosive 1 | . . 1 Electromagnetic . | . . . Robot Hit Streak 8 | 5 8 7 Robot Miss Streak 3 | . 3 3 Penetration Max . | . . . Secondary Targets . | . . . Shots Hit Robots 94 | 5 68 21 Core Hits 40 | 3 25 12 Critical Kills . | . . . Critical Parts Destroyed . | . . . Critical Strikes . | . . . Melee Attacks . | . . . Impact . | . . . Slashing . | . . . Piercing . | . . . Sneak Attacks . | . . . Combat Hostiles . | . . . Follow-up Attacks . | . . . Damage Inflicted 1271 | 55 821 395 Guns 1034 | 55 790 189 Cannons 86 | . . 86 Explosions 96 | . . 96 Melee . | . . . Ramming 55 | . 31 24 Kinetic . | . . . Thermal 1120 | 55 790 275 Explosive 96 | . . 96 Electromagnetic . | . . . Impact . | . . . Slashing . | . . . Piercing . | . . . Highest Corruption 5 | . . 5 Average Corruption 4 | . . 4 Corruption Purged . | . . . Corruption Blocked . | . . . Effects 3 | . . 3 Message Errors 1 | . . 1 Heat Flow Errors 1 | . . 1 Energy Discharges 1 | . . 1 Overload Shots . | . . . Overflow Damage 3 | . 3 . Projectiles . | . . . Explosions 3 | . 3 . Melee . | . . . Knockbacks 1 | . 1 . Impact 1 | . 1 . Kinetic . | . . . Secondary . | . . . Self-Inflicted Damage 61 | . 59 2 Shots 2 | . 1 1 Rammed 12 | . 9 3 Targets Rammed 14 | . 10 4 Kicked . | . . . Crushed 2 | . 1 1 Highest Temperature 342 | 54 24 342 Average Temperature 23 | 28 7 67 Received Heat Transfer 81 | . 18 63 Effects 1 | . . 1 Energy Bleed 1 | . . 1 Siege Activations . | . . . Martial Activations . | . . . Shielding Activations . | . . . Robots Disrupted . | . . . Combat Hostiles . | . . . Robots Corrupted . | . . . Combat Hostiles . | . . . Parts Fried . | . . . Impact Corruptions . | . . . Robots Melted . | . . . Combat Hostiles . | . . . Parts Melted 3 | . 1 2 Heat Transferred 2435 | 125 1725 585 Parts Sabotaged . | . . . Parts Stolen . | . . . Parts Stripped . | . . . Power Chain Reactions . | . . . Alert | -11 -10 -10 ------- Run | Yrd Mat Min Maximum Alert Level . | . . . Low Security (%) 100 | 100 100 100 Level 1 . | . . . Level 2 . | . . . Level 3 . | . . . Level 4 . | . . . Level 5 . | . . . High Security . | . . . Max Security . | . . . Peak Influence 135 | 10 135 133 Initial 28 | . . 28 Average 59 | 3 52 87 Influence Increases 655 | 10 425 220 Destroy 0b10 Robot/C 380 | . 240 140 Destroy 0b10 Robot/NC 35 | 10 20 5 Destroy Leader 64 | . 44 20 Successful Hack 27 | . 27 . Disable Machine 15 | . 15 . Destroy Structure 29 | . 19 10 Lose Combat Pursuer 105 | . 60 45 Influence Decreases 655 | 10 350 295 Entered New Map 47 | . . 47 Time Decay 530 | 10 340 180 Lost Part 78 | . 10 68 Squads Dispatched 2 | . 2 . Investigation 1 | . 1 . Extermination . | . . . Reinforcement 1 | . 1 . Assault . | . . . Garrison . | . . . Intercept . | . . . Searches Triggered . | . . . Construction Impeded . | . . . Haulers Reinforced . | . . . Active Scanning Responses . | . . . Cargo Convoy Interrupts . | . . . Stealth | -11 -10 -10 --------- Run | Yrd Mat Min Distress Signals 4 | . 4 . Communications Jammed . | . . . Distress Signals . | . . . Times Spotted 40 | . 24 16 Peak Tracking Total 4 | . 4 4 Tactical Retreats 6 | . 3 3 Traps | -11 -10 -10 ------- Run | Yrd Mat Min Traps Triggered 2 | . 2 . Indirectly . | . . . Trap Hack Attempts . | . . . Triggered . | . . . Disarmed . | . . . Reprogrammed . | . . . Reused . | . . . Traps Extracted . | . . . Installed . | . . . Triggered . | . . . Machines | -11 -10 -10 ---------- Run | Yrd Mat Min Machines Disabled 1 | . 1 . Max in Single Turn 1 | . 1 . Machines Repaired . | . . . Machines Dismantled . | . . . Machines Sabotaged . | . . . Overloaded Fab Kills . | . . . Hacking | -11 -10 -10 --------- Run | Yrd Mat Min Machines Accessed 7 | . 7 . Terminals 6 | . 6 . Fabricators . | . . . Repair Stations . | . . . Recycling Units 1 | . 1 . Scanalyzers . | . . . Garrison Access . | . . . Total Hacks 26 | . 26 . Successful 13 | . 13 . Failed 13 | . 13 . Catastrophic . | . . . Database Lockouts . | . . . Manual 21 | . 21 . Terminals 22 | . 22 . Fabricators . | . . . Repair Stations . | . . . Recycling Units 4 | . 4 . Scanalyzers . | . . . Garrison Access . | . . . Terminal Hacks 6 | . 6 . Robot Analysis 2 | . 2 . Terminal Index 1 | . 1 . Locate Traps 1 | . 1 . Recall Investigation 1 | . 1 . Hauler Manifests 1 | . 1 . Fabricator Hacks . | . . . Repair Station Hacks . | . . . Recycling Unit Hacks 1 | . 1 . Retrieve Components 1 | . 1 . Scanalyzer . | . . . Garrison Access Hacks . | . . . Unauthorized Hacks 6 | . 6 . Terminals 6 | . 6 . Botnet 2 | . 2 . Operators 1 | . 1 . Skim 3 | . 3 . Fabricators . | . . . Repair Stations . | . . . Recycling Units . | . . . Scanalyzers . | . . . Garrison Access . | . . . Data Cores Recovered . | . . . Used . | . . . Hacking Detections 7 | . 7 . Full Trace Events . | . . . Feedback Events . | . . . Feedback Blocked . | . . . Robot Schematics Acquired . | . . . Robots Built . | . . . Authchips . | . . . Time . | . . . Total Robot Build Rating . | . . . Part Schematics Acquired . | . . . Parts Built . | . . . Authchips . | . . . Time . | . . . Total Part Build Rating . | . . . Part Studies Acquired . | . . . Parts Repaired . | . . . Time . | . . . Parts Recycled . | . . . Recycled Matter . | . . . Retrieved Matter . | . . . Retrieved Components 9 | . 9 . Parts Scanalyzed . | . . . Part Schematics Acquired . | . . . Parts Damaged . | . . . Bothacking | -11 -10 -10 ------------ Run | Yrd Mat Min Used RIF Installer . | . . . Robots Hacked . | . . . Non-combat . | . . . Combat . | . . . Robot Hacks Applied . | . . . Relay Couplers Released . | . . . Fabnet Peak Effective % . | . . . Robots Rewired . | . . . Allies Hacked . | . . . Hacks Repelled . | . . . Allies | -11 -10 -10 -------- Run | Yrd Mat Min Total Allies . | . . . Largest Group . | . . . Highest-Rated Group . | . . . Highest-Rated Ally . | . . . Total Orders . | . . . Ally Attacks . | . . . Total Damage . | . . . Kills . | . . . Allies Corrupted . | . . . Allies Melted . | . . . Intel | -11 -10 -10 ------- Run | Yrd Mat Min Active Infowar (turns) 1195 | 16 1177 2 Seismic 1195 | 16 1177 2 Robot Analysis Total 2 | . 2 . Derelict Logs Recovered . | . . . Drone Launches . | . . . Drone Recoveries . | . . . Exploration | -11 -10 -10 ------------- Run | Yrd Mat Min Turns Passed 1575 | 35 1177 363 Spaces Moved 768 | 18 565 185 Core 1 | . . 1 Treads 746 | . 562 184 Legs 21 | 18 3 . Wheels . | . . . Hover . | . . . Flight . | . . . Fastest Speed 120 | 120 120 160 Average Speed 159 | 120 159 161 Slowest Speed 400 | 120 160 400 Overloaded Moves . | . . . Propulsion Burnouts . | . . . Robots Hopped . | . . . Potential Cave-ins . | . . . Cave-ins Triggered . | . . . Exploration Rate (%) 41 | 3 84 36 Regions Visited 2 Branch Regions 1 Pre-discovered Areas . | . . . Known Exits Taken . | . . . Unknown Exits Taken 2 | 1 1 . Scrap Searched . | . . . Spaces Dug 10 | . . 10 Terrain Destroyed 28 | . 18 10 Melee . | . . . Projectile . | . . . AOE 28 | . 18 10 Terrain Rammed . | . . . Walls Destroyed . | . . . Machines Disabled . | . . . Actions | -11 -10 -10 --------- Run | Yrd Mat Min Total 966 | 24 729 213 Wait 82 | 1 79 2 Move 766 | 17 564 185 Hop . | . . . Pick Up 10 | 1 9 . Fast Attach 3 | 1 2 . Attach 3 | . 1 2 Detach . | . . . Swap 9 | 1 6 2 Drop 6 | . 6 . Fire 73 | 3 52 18 Melee . | . . . Ram . | . . . Kick . | . . . Crush 14 | . 10 4 Escape Stasis . | . . . Rewire . | . . . Trap . | . . . Miscellaneous . | . . . Route ------- -11/Scrapyard -10/Materials (discovered 5 exits: [*Mat x3] / [*Min x2]) -10/Mines (discovered 1 exit: [*Mat]) History --------- Turn | Location | Event 13 | -11/Scrapyard | Discovered new exit (range 3) 36 | -11/Scrapyard | Entered Materials 252 | -10/Materials | Discovered new exit (range 14) 315 | -10/Materials | Build established: Mutant 332 | -10/Materials | Discovered new exit (range 5) 510 | -10/Materials | Discovered new exit (range 3) 598 | -10/Materials | Discovered new exit (range 16) 890 | -10/Materials | Discovered new exit (range 15) 1036 | -10/Materials | Derelicts attacked the area 1213 | -10/Materials | Entered Mines 1214 | -10/Mines | Met a Derelict bent on vengeance 1374 | -10/Mines | Discovered new exit (range 6) 1438 | -10/Mines | Assembled infested the area 1571 | -10/Mines | Core integrity fell below 50% 1574 | -10/Mines | Core integrity fell below 20% 1576 | -10/Mines | Destroyed by Y-45 Defender with Heavy Assault Rifle Last Messages --------------- 01511_ K-01 Serf destroyed. 01520_ Slammed into R-06 Scavenger. 01546_ System corrupted: Energy discharge (-35). 01560_ U-05 Engineer builds a Wall. 01564_ U-05 Engineer lays Concrete. 01565_ Machine disabled. 01565_ U-05 Engineer lays Concrete. 01566_ System corrupted: Heat flow error (+234). 01566_ U-05 Engineer lays Concrete. 01567_ Lgt. Ion Engine destroyed. 01567_ U-05 Engineer lays Concrete. 01568_ K-01 Serf collects debris. 01569_ Overheating: Energy bleed (-8). 01569_ Lgt. Treads destroyed. 01571_ K-01 Serf collects debris. 01575_ The unstable cave ceiling collapses. 01575_ Beam Cannon destroyed. 01575_ Sml. Laser destroyed. 01576_ The unstable cave ceiling collapses. 01576_ K-01 Serf collects debris. Map ----- +----------------------------------------------------+ | ??# """ #???????####??????????#??????? | | ??# """ #??????## ##????????? ###???? | | ??# ######## ########### #???? | | ??# =%[ ## #???? | | ??# ######## ### #?# ## #???? | | ??# < #?????## #?# ### ## #???? | | ??# #?????# ### ## #???? | | ??### ####?????# ## ## #???? | | ????# #????????## # ## """ ##### | | ????# #?????????#### """[%= | | ????# #????????????## ## ## """ ##### | | ????# #?????????????##### ## #???? | | ????#%#?????????????????# ####=####???? | | ????# #?????????????????# ##?#%#??????? | | ????# #????????????????## ###%#??????? | | ????# #????????????????# #??????? | | ????# #????????????????# ???? | | ????# #????????????????# | | ????# #??????????????## ### | | ????# #??????????????# % ##?? | | ????# #?????????????# k # ##??? | | ????# #############?# # ## ##???? | | ????# % ## ?? #????? | | ????####### #???? #????? | | ???????#### # # #??? #????? | | ???????#"]! @ #????? #????? | | ??????#""[! ##% # #??? #????? | | ??????# Y Y ## #?????? ????? | | ??????## # #?????? ????? | | ???????##++# d #??????? #????? | | ?????????? ????????????? | | ????????? d #???????????? | | ??????? # #???????????? | | ??????# #???????????? | | ?????? %##???????????? | | ????? # #????????????? | | ???? ## ### # ????????????? | | ???? #?### ???######???????????? | | ?????? ????## ????????????????????? | | ????????????## ????????????????????? | | ?????????????# ????????????????????? | | ?????????????# #????????????????????? | | ??????????????? ??????????????????????? | | ??????????????????????????????????????? | | ??????????????????????????????????????? | | ??????????????????????????????????????? | | ??????????????????????????????????????? | | ??????????????????????????????????????? | | ??????????????????????????????????????? | | ??????????????????????????????????????? | +----------------------------------------------------+ Best States ------------- Heat Dissipation 25 Energy Generation 10 Energy Capacity 125 Matter Stores 300 Matter Capacity 300 Sight Range 16 Terrain Scan Density 10 Evasion (%) 55 Recoil Reduction 2 Item Schematics ----------------- None Robot Schematics ------------------ None Fabricated ------------ Nothing Repaired ---------- Nothing Studied --------- None Alien Tech Used ----------------- None Achievements -------------- None Challenges ------------ None Game ------ Seed EncryptedZipTube Manual? 0 Play Time 00:10:22 Cumulative 347.4 hours Start 2026.04.20 @ 19:49:41 End 2026.04.20 @ 19:58:16 Sessions 1 Manual Loads 0 Difficulty Rogue Special Mode None Game No. 225 Rogue 225 Adventurer 0 Explorer 0 Win Type - Total 16 Types 8/1/3/2/0/0/0/0/1/1 Lore% 82 Gallery% 71 Achievement% 64 Wizard Run 0 Options --------- Layout 0 ASCII 0 Keyboard 1 Movement Numpad Keybinds 0 Fullscreen 1 Font 24/Terminus Map View 76x50 Zoom Use 0% Tactical HUD 1 Map Filters NONE Filters NONE Steam 1 RUN: 800723f8-9ebe-4cab-a831-16aa538df70f